fUSD/lending_fUSD_20260321
["ID","MTS","AMOUNT","RATE_DAILY","PERIOD"]
[408658242,1774061432439,-153.57,0.00014675,2]
[408658243,1774061432449,-166.66,0.00014766,2]
[408658244,1774061432459,-5059.38362188,0.00015,2]
[408658245,1774061432469,-3240.0,0.00015024,2]
[408658246,1774061432479,-166.66,0.00015064,2]
[408658247,1774061432488,-166.66,0.00015363,2]
[408658248,1774061432498,-429.0,0.00015526,2]
[408658249,1774061432508,-429.0,0.00015569,2]
[408658250,1774061432517,-429.0,0.00015618,2]
[408658251,1774061432527,-14781.8267138,0.00015628,2]
[408658252,1774061432536,-2975.4083499,0.00015628,2]
[408658253,1774061432546,-429.0,0.00015659,2]
[408658254,1774061432555,-166.66,0.00015661,2]
[408658255,1774061432566,-255.0,0.00015755,2]
[408658256,1774061432575,-51611.96310148,0.000158,2]
[408658257,1774061432587,-3851.16764039,0.000158,2]
[408658258,1774061438238,-500.0,0.00015799,2]
[408658259,1774061438248,-553.7931745,0.00015799,2]
[408658260,1774061438262,-627.99218697,0.00015799,2]
[408658261,1774061438271,-2003.77463853,0.000158,2]
[408658271,1774061440166,-514844.5490196,0.000158,2]
[408658272,1774061440177,-429.0,0.00015802,2]
[408658273,1774061440188,-201.9121554,0.0001589,2]
[408658274,1774061440197,-500.0,0.00015899,2]
[408658275,1774061440207,-500.0,0.00015899,2]
[408658276,1774061440216,-9482.2357,0.000159,2]
[408658277,1774061440226,-189.02579725,0.000159,2]
[408658278,1774061440236,-1000.0,0.000159,2]
[408658279,1774061440246,-5000.0,0.000159,2]
[408658280,1774061440256,-205.24,0.000159,2]
[408658281,1774061440267,-350.13038987,0.000159,2]
[408658282,1774061440276,-1140.31639464,0.000159,2]
[408658283,1774061440286,-2500.0,0.000159,2]
[408658284,1774061440295,-223.54719898,0.000159,2]
[408658285,1774061440305,-429.0,0.00015907,2]
[408658286,1774061440314,-429.0,0.00015922,2]
[408658287,1774061440324,-429.0,0.00015957,2]
[408658288,1774061440334,-5017.08203779,0.0001596,2]
[408658289,1774061440343,-503.41086982,0.00015973,2]
[408658290,1774061440353,-500.86874305,0.00015973,2]
[408658291,1774061440362,-501.50893912,0.00015973,2]
[408658292,1774061440371,-501.82006381,0.00015973,2]
[408658293,1774061440381,-500.48431933,0.00015973,2]
[408658294,1774061440391,-457.34488378,0.0001599,2]
[408658295,1774061440401,-457.34488378,0.0001599,2]
[408658296,1774061440410,-151.0,0.00015997,2]
[408658297,1774061440419,-500.0,0.00015999,2]
[408658298,1774061440429,-500.0,0.00015999,2]
[408658299,1774061440438,-500.0,0.00015999,2]
[408658300,1774061440447,-500.0,0.00015999,2]
[408658301,1774061440461,-500.0,0.00015999,2]
[408658302,1774061440471,-500.0,0.00015999,2]
[408658303,1774061440481,-500.0,0.00015999,2]
[408658304,1774061440490,-500.0,0.00015999,2]
[408658305,1774061440500,-500.0,0.00015999,2]
[408658306,1774061440509,-419.03397916,0.00015999,2]
[408658307,1774061440519,-500.0,0.00015999,2]
[408658308,1774061440528,-500.0,0.00015999,2]
[408658309,1774061440538,-500.0,0.00015999,2]
[408658310,1774061440548,-500.0,0.00015999,2]
[408658311,1774061440557,-500.0,0.00015999,2]
[408658312,1774061440567,-500.0,0.00015999,2]
[408658313,1774061440577,-500.0,0.00015999,2]
[408658314,1774061440587,-500.0,0.00015999,2]
[408658315,1774061440597,-500.0,0.00015999,2]
[408658316,1774061440607,-500.0,0.00015999,2]
[408658317,1774061440619,-500.0,0.00015999,2]
[408658318,1774061440628,-500.0,0.00015999,2]
[408658319,1774061440638,-500.0,0.00015999,2]
[408658320,1774061440648,-500.0,0.00015999,2]
[408658321,1774061440657,-500.0,0.00015999,2]
[408658322,1774061440666,-313.69465135,0.00015999,2]
[408658323,1774061440675,-501.51644773,0.00015999,2]
[408658324,1774061440684,-500.0,0.00015999,2]
[408658325,1774061440694,-500.0,0.00015999,2]
[408658326,1774061440703,-500.0,0.00015999,2]
[408658327,1774061440712,-500.0,0.00015999,2]
[408658328,1774061440721,-500.0,0.00015999,2]
[408658329,1774061440731,-500.0,0.00015999,2]
[408658330,1774061440740,-500.0,0.00015999,2]
[408658331,1774061440750,-500.0,0.00015999,2]
[408658332,1774061440759,-511.55898747,0.00015999,2]
[408658333,1774061440769,-500.0,0.00015999,2]
[408658334,1774061440778,-500.0,0.00015999,2]
[408658335,1774061440787,-513.92773084,0.00015999,2]
[408658336,1774061440797,-500.0,0.00015999,2]
[408658337,1774061440807,-431.8713349,0.00015999,2]
[408658338,1774061440816,-3762701.7067946,0.00016,2]
[408658339,1774061440828,-2109.78527406,0.00016,2]
[408658382,1774062632107,-197.0,0.00014899,2]
[408658384,1774062632117,-1653.0,0.00014899,2]
[408658386,1774062632128,-847.0,0.00014899,2]
[408658388,1774062632137,-600.0,0.00014899,2]
[408658390,1774062632146,-600.0,0.00014921,2]
[408658391,1774062632155,-600.0,0.00014921,2]
[408658392,1774062632164,-600.0,0.00014921,2]
[408658393,1774062632173,-300.0,0.00014963,2]
[408658394,1774062632183,-2500.0,0.00014964,2]
[408658395,1774062632192,-11487.79882738,0.00015202,2]
[408658396,1774062632215,-400.1161207,0.00015202,2]
[408658397,1774062632225,-339.75260614,0.00015202,2]
[408658398,1774062632236,-867.29465335,0.00015202,2]
[408658399,1774062632274,-4192.11405072,0.00015202,2]
[408658400,1774062632328,-310.55827694,0.00015202,2]
[408658403,1774062632340,-334.02485,0.00015202,2]
[408658405,1774062632351,-511.41,0.00015202,2]
[408658413,1774062638203,-10732.66,0.00015202,2]
[408658445,1774062646233,-4206.54370395,0.00015202,2]
[408658457,1774063524423,158.8,7.534e-05,2]
[408658458,1774063526774,158.8,9.418e-05,2]
[408658475,1774063831511,-158.8,0.00011302,2]
[408658476,1774063831521,-242.0,0.00011302,2]
[408658477,1774063831532,-158.8,0.00013185,2]
[408658478,1774063831544,-300.0,0.00013989,2]
[408658479,1774063831553,-22663.07601819,0.0001399,2]
[408658480,1774063831563,-350.13038987,0.000147,2]
[408658481,1774063831576,-501.50893912,0.00014773,2]
[408658482,1774063831587,-500.86874305,0.00014773,2]
[408658483,1774063831598,-500.48431933,0.00014773,2]
[408658484,1774063831607,-29219.31393896,0.000148,2]
[408658485,1774063831619,-74305.90183791,0.000148,2]
[408658487,1774063831631,-1517.13268707,0.000148,2]
[408658490,1774063837461,-7484.55,0.000147,2]
[408658513,1774063839889,-48246.02872005,0.000147,2]
[408658514,1774063839944,-17367.54447995,0.000147,2]
[408658515,1774063839955,-1000.0,0.000148,2]
[408658516,1774063839965,-350.13038978,0.00014833,2]
[408658517,1774063839975,-350.13038978,0.00014967,2]
[408658518,1774063839984,-158.8,0.00015069,2]
[408658519,1774063839994,-2000.0,0.00015095,2]
[408658520,1774063840003,-350.13038978,0.000151,2]
[408658521,1774063840012,-200.0,0.0001514,2]
[408658522,1774063840022,-8666.40691082,0.00015202,2]
[408658523,1774063840032,-500.0,0.00015204,2]
[408658524,1774063840041,-350.13038978,0.00015233,2]
[408658525,1774063840051,-150.0,0.00015236,2]
[408658526,1774063840060,-420.0,0.00015326,2]
[408658527,1774063840070,-350.13038978,0.00015367,2]
[408658528,1774063840080,-350.13038978,0.000155,2]
[408658529,1774063840089,-350.13038978,0.00015633,2]
[408658530,1774063840101,-637.0,0.0001569,2]
[408658531,1774063840111,-2500.0,0.000157,2]
[408658532,1774063840125,-637.0,0.00015706,2]
[408658533,1774063840135,-350.13038978,0.00015767,2]
[408658534,1774063840145,-500.0,0.00015799,2]
[408658535,1774063840155,-500.0,0.00015799,2]
[408658536,1774063840166,-27636.8882,0.000158,2]
[408658537,1774063840176,-326.24637337,0.000158,2]
[408658538,1774063840187,-157.56924,0.0001584,2]
[408658539,1774063840196,-157.56924,0.0001584,2]
[408658540,1774063840205,-637.0,0.00015867,2]
[408658541,1774063840215,-500.0,0.00015899,2]
[408658542,1774063840225,-500.0,0.00015899,2]
[408658543,1774063840235,-500.0,0.00015899,2]
[408658544,1774063840244,-500.0,0.00015899,2]
[408658545,1774063840254,-500.0,0.00015899,2]
[408658546,1774063840263,-500.0,0.00015899,2]
[408658547,1774063840273,-500.0,0.00015899,2]
[408658548,1774063840283,-500.0,0.00015899,2]
[408658549,1774063840292,-500.0,0.00015899,2]
[408658550,1774063840302,-500.0,0.00015899,2]
[408658551,1774063840312,-500.0,0.00015899,2]
[408658552,1774063840321,-500.0,0.00015899,2]
[408658553,1774063840331,-500.0,0.00015899,2]
[408658554,1774063840341,-500.0,0.00015899,2]
[408658555,1774063840351,-500.0,0.00015899,2]
[408658556,1774063840360,-500.0,0.00015899,2]
[408658557,1774063840370,-528.87113134,0.00015899,2]
[408658558,1774063840380,-499.99999999,0.00015899,2]
[408658559,1774063840390,-1497.01233578,0.000159,2]
[408658560,1774063840400,-4075.68028733,0.000159,2]
[408658561,1774063840409,-3647.69355154,0.000159,2]
[408658562,1774063840419,-152.80515961,0.000159,2]
[408658563,1774063840428,-16060.0323,0.000159,2]
[408658564,1774063840439,-5000.0,0.000159,2]
[408658566,1774063840448,-443.16327424,0.000159,2]
[408658568,1774063840458,-350.13038978,0.000159,2]
[408658570,1774063840467,-504.73559328,0.000159,2]
[408658572,1774063840477,-223.54719898,0.000159,2]
[408658574,1774063840486,-335.71749139,0.000159,2]
[408658576,1774063840495,-1140.31639464,0.000159,2]
[408658578,1774063840504,-24971.16184579,0.000159,2]
[408658580,1774063840513,-4948.32341729,0.000159,2]
[408658582,1774063840523,-637.0,0.00015942,2]
[408658585,1774063840532,-5017.08203779,0.0001596,2]
[408658587,1774063840542,-500.0,0.00015973,2]
[408658590,1774063840550,-500.43371768,0.00015973,2]
[408658593,1774063840559,-344.5932573,0.00015973,2]
[408658595,1774063840568,-500.67261463,0.00015973,2]
[408658597,1774063840577,-501.5099809,0.00015973,2]
[408658599,1774063840587,-505.24689163,0.00015973,2]
[408658601,1774063840596,-505.15764835,0.00015973,2]
[408658602,1774063840605,-457.34488378,0.0001599,2]
[408658603,1774063840615,-457.34488378,0.0001599,2]
[408658604,1774063840624,-457.34488378,0.0001599,2]
[408658606,1774063840633,-201.9121554,0.0001599,2]
[408658608,1774063840643,-1008.5537948,0.00015991,2]
[408658610,1774063840653,-151.0,0.00015997,2]
[408658612,1774063840663,-500.0,0.00015999,2]
[408658613,1774063840672,-513.92773084,0.00015999,2]
[408658614,1774063840681,-431.8713349,0.00015999,2]
[408658615,1774063840690,-500.0,0.00015999,2]
[408658616,1774063840699,-500.0,0.00015999,2]
[408658617,1774063840709,-500.0,0.00015999,2]
[408658618,1774063840718,-500.0,0.00015999,2]
[408658619,1774063840728,-500.0,0.00015999,2]
[408658620,1774063840738,-532.46694028,0.00015999,2]
[408658621,1774063840748,-500.0,0.00015999,2]
[408658622,1774063840759,-167.64662926,0.00015999,2]
[408658623,1774063840768,-500.0,0.00015999,2]
[408658624,1774063840778,-213.66881185,0.00015999,2]
[408658625,1774063840787,-1143.0,0.00016,5]
[408658626,1774063840797,-615529.01987605,0.00016,2]
[408658627,1774063840807,-200.0,0.00016,2]
[408658628,1774063840816,-153.29965778,0.00016,2]
[408658629,1774063840825,-1000.0,0.00016,2]
[408658630,1774063840835,-1000.0,0.00016,2]
[408658631,1774063840845,-1000.0,0.00016,2]
[408658632,1774063840855,-1000.0,0.00016,2]
[408658633,1774063840873,-1000.0,0.00016,2]
[408658634,1774063840886,-1000.0,0.00016,2]
[408658635,1774063840896,-1000.0,0.00016,2]
[408658636,1774063840906,-1000.0,0.00016,2]
[408658637,1774063840918,-1000.0,0.00016,2]
[408658638,1774063840928,-1000.0,0.00016,2]
[408658639,1774063840938,-1000.0,0.00016,2]
[408658640,1774063840947,-1000.0,0.00016,2]
[408658641,1774063840957,-1000.0,0.00016,2]
[408658642,1774063840967,-357.57554866,0.00016,30]
[408658643,1774063840978,-200.0,0.00016,2]
[408658644,1774063840989,-3331042.82857672,0.00016,2]
[408658663,1774063845348,-637.55999999,0.00016,2]
[408658664,1774063845456,-42653.66955304,0.00016,2]
[408658679,1774065031534,-166.66,0.0001413,2]
[408658680,1774065031544,-600.0,0.00014278,2]
[408658681,1774065031554,-108.5614,0.00014419,2]
[408658682,1774065031570,-495.19096835,0.00014419,2]
[408658683,1774065031589,-133.29243432,0.00014419,2]
[408658684,1774065031599,-150.0,0.00014419,2]
[408658685,1774065031609,-166.66,0.00014427,2]
[408658686,1774065031619,-200.0,0.00014494,2]
[408658687,1774065031629,-864.21662497,0.00014548,2]
[408658688,1774065031641,-2375.78337503,0.00014548,2]
[408658689,1774065031651,-251.1797511,0.000146,2]
[408658690,1774065031661,-201.9121554,0.00014664,2]
[408658691,1774065031671,-1200.0,0.00014672,2]
[408658692,1774065031680,-501.82006381,0.00014673,2]
[408658693,1774065031689,-503.41086982,0.00014673,2]
[408658694,1774065031703,-4545.80126485,0.00014673,2]
[408658695,1774065031719,-843.34461856,0.00014673,2]
[408658696,1774065031732,-119962.99291659,0.00014673,2]
[408658697,1774065031742,-1000.0,0.000147,2]
[408658698,1774065031752,-16187.47995465,0.000147,2]
[408658699,1774065031764,-264.16260944,0.000147,2]
[408658700,1774065031791,-784.80151804,0.000147,2]
[408658701,1774065031802,-816.11829527,0.000147,2]
[408658719,1774065037663,-384.83554374,0.00014573,2]
[408658720,1774065037675,-27252.05265626,0.00014573,2]
[408658721,1774065037686,-16060.0323,0.000147,2]
[408658722,1774065037696,-166.66,0.00014724,2]
[408658723,1774065037707,-429.0,0.0001494,2]
[408658724,1774065037716,-429.0,0.00015001,2]
[408658725,1774065037726,-166.66,0.00015022,2]
[408658726,1774065037736,-429.0,0.00015023,2]
[408658727,1774065037745,-429.0,0.0001504,2]
[408658728,1774065037755,-461.45026892,0.00015048,2]
[408658729,1774065037764,-500.0,0.00015048,2]
[408658730,1774065037773,-429.0,0.00015049,2]
[408658731,1774065037783,-429.0,0.00015051,2]
[408658732,1774065037793,-429.0,0.00015078,2]
[408658733,1774065037803,-429.0,0.00015111,2]
[408658734,1774065037824,-0.67442237,0.00015119,2]
[408658735,1774065037838,-152.89557763,0.00015119,2]
[408658736,1774065037848,-116.28439874,0.00015157,2]
[408658737,1774065037859,-312.71560126,0.00015157,2]
[408658738,1774065037870,-97.46030074,0.00015189,2]
[408658742,1774065040025,-331.53969926,0.00015189,2]
[408658743,1774065040035,-429.0,0.00015312,2]
[408658744,1774065040044,-429.0,0.00015316,2]
[408658745,1774065040055,-166.66,0.00015319,2]
[408658746,1774065040065,-429.0,0.00015326,2]
[408658747,1774065040074,-1794.0,0.00015399,2]
[408658748,1774065040084,-429.0,0.00015466,2]
[408658749,1774065040093,-2500.0,0.00015543,2]
[408658750,1774065040102,-600.0,0.00015543,2]
[408658751,1774065040112,-600.0,0.00015543,2]
[408658752,1774065040122,-600.0,0.00015543,2]
[408658753,1774065040131,-167.66,0.00015567,2]
[408658754,1774065040140,-1794.0,0.00015615,2]
[408658755,1774065040149,-166.66,0.00015617,2]
[408658756,1774065040159,-500.0,0.00015799,2]
[408658757,1774065040168,-500.0,0.00015799,2]
[408658758,1774065040177,-500.0,0.00015799,2]
[408658759,1774065040187,-491.51644773,0.00015799,2]
[408658760,1774065040197,-500.0,0.00015799,2]
[408658761,1774065040206,-500.0,0.00015799,2]
[408658762,1774065040216,-500.0,0.00015799,2]
[408658763,1774065040225,-1104.88484829,0.0001584,2]
[408658764,1774065040235,-326.24637337,0.00015873,2]
[408658765,1774065040243,-2000.0,0.0001589,2]
[408658766,1774065040253,-256.70914565,0.000159,2]
[408658767,1774065040262,-5000.0,0.000159,2]
[408658768,1774065040272,-216.40757702,0.000159,2]
[408658769,1774065040281,-3261.5680976,0.000159,2]
[408658770,1774065040291,-504.73559328,0.000159,2]
[408658771,1774065040300,-391.67896087,0.000159,2]
[408658772,1774065040310,-1466.32548434,0.000159,2]
[408658773,1774065040319,-223.54719898,0.000159,2]
[408658774,1774065040328,-500.0,0.00015958,2]
[408658775,1774065040337,-500.0,0.00015958,2]
[408658776,1774065040347,-500.0,0.00015958,2]
[408658777,1774065040356,-500.0,0.00015958,2]
[408658778,1774065040366,-500.0,0.00015958,2]
[408658779,1774065040375,-500.0,0.00015958,2]
[408658780,1774065040388,-500.0,0.00015958,2]
[408658781,1774065040397,-500.0,0.00015958,2]
[408658782,1774065040407,-500.0,0.00015958,2]
[408658783,1774065040416,-500.0,0.00015958,2]
[408658784,1774065040427,-500.0,0.00015958,2]
[408658785,1774065040436,-500.0,0.00015958,2]
[408658786,1774065040446,-500.0,0.00015958,2]
[408658787,1774065040456,-500.0,0.00015958,2]
[408658788,1774065040466,-500.0,0.00015958,2]
[408658789,1774065040475,-500.0,0.00015958,2]
[408658790,1774065040484,-227.31889062,0.00015958,2]
[408658791,1774065040494,-5017.08203779,0.0001596,2]
[408658792,1774065040504,-170.0,0.00015973,2]
[408658793,1774065040513,-505.15764835,0.00015973,2]
[408658794,1774065040523,-500.7227173,0.00015973,2]
[408658795,1774065040532,-500.43371768,0.00015973,2]
[408658796,1774065040541,-500.0,0.00015973,2]
[408658797,1774065040551,-500.10733677,0.00015973,2]
[408658798,1774065040560,-500.0,0.00015973,2]
[408658799,1774065040570,-500.0,0.00015973,2]
[408658800,1774065040579,-500.76199288,0.00015973,2]
[408658801,1774065040588,-536.31865892,0.00015973,2]
[408658802,1774065040598,-501.14781229,0.00015973,2]
[408658803,1774065040607,-500.67261463,0.00015973,2]
[408658804,1774065040616,-501.5099809,0.00015973,2]
[408658805,1774065040625,-210.30338749,0.00015973,2]
[408658806,1774065040635,-608.50112522,0.00015973,2]
[408658807,1774065040644,-402.7710979,0.00015973,2]
[408658808,1774065040653,-500.66468898,0.00015973,2]
[408658809,1774065040662,-501.02595757,0.00015973,2]
[408658810,1774065040671,-559.65581589,0.00015973,2]
[408658811,1774065040680,-500.20783857,0.00015973,2]
[408658812,1774065040690,-500.0,0.00015973,2]
[408658813,1774065040699,-501.55404824,0.00015973,2]
[408658814,1774065040708,-191.80662728,0.00015973,2]
[408658815,1774065040717,-500.24825589,0.00015973,2]
[408658816,1774065040727,-501.15095378,0.00015973,2]
[408658817,1774065040736,-500.94019973,0.00015973,2]
[408658818,1774065040745,-501.06667076,0.00015973,2]
[408658819,1774065040754,-501.03045518,0.00015973,2]
[408658820,1774065040764,-500.71659233,0.00015973,2]
[408658821,1774065040774,-500.23015738,0.00015973,2]
[408658822,1774065040783,-500.50755016,0.00015973,2]
[408658823,1774065040792,-205.24,0.00015973,2]
[408658824,1774065040801,-685.61707621,0.0001599,2]
[408658825,1774065040811,-685.61707621,0.0001599,2]
[408658826,1774065040820,-151.0,0.00015997,2]
[408658827,1774065040829,-500.0,0.00015999,2]
[408658828,1774065040838,-500.0,0.00015999,2]
[408658829,1774065040847,-500.0,0.00015999,2]
[408658830,1774065040856,-500.0,0.00015999,2]
[408658831,1774065040865,-500.0,0.00015999,2]
[408658832,1774065040874,-500.0,0.00015999,2]
[408658833,1774065040883,-500.0,0.00015999,2]
[408658834,1774065040892,-500.0,0.00015999,2]
[408658835,1774065040902,-500.0,0.00015999,2]
[408658836,1774065040913,-419.03397916,0.00015999,2]
[408658837,1774065040924,-500.0,0.00015999,2]
[408658838,1774065040934,-500.0,0.00015999,2]
[408658839,1774065040943,-500.0,0.00015999,2]
[408658840,1774065040952,-500.0,0.00015999,2]
[408658841,1774065040961,-500.0,0.00015999,2]
[408658842,1774065040971,-500.0,0.00015999,2]
[408658843,1774065040981,-500.0,0.00015999,2]
[408658844,1774065040991,-500.0,0.00015999,2]
[408658845,1774065041000,-500.0,0.00015999,2]
[408658846,1774065041009,-500.0,0.00015999,2]
[408658847,1774065041018,-500.0,0.00015999,2]
[408658848,1774065041027,-500.0,0.00015999,2]
[408658849,1774065041036,-500.0,0.00015999,2]
[408658850,1774065041045,-500.0,0.00015999,2]
[408658851,1774065041055,-313.69465135,0.00015999,2]
[408658852,1774065041064,-500.0,0.00015999,2]
[408658853,1774065041073,-500.0,0.00015999,2]
[408658854,1774065041083,-500.0,0.00015999,2]
[408658855,1774065041093,-500.0,0.00015999,2]
[408658856,1774065041103,-500.0,0.00015999,2]
[408658857,1774065041113,-500.0,0.00015999,2]
[408658858,1774065041123,-500.0,0.00015999,2]
[408658859,1774065041133,-500.0,0.00015999,2]
[408658860,1774065041145,-500.0,0.00015999,2]
[408658861,1774065041155,-500.0,0.00015999,2]
[408658862,1774065041164,-500.0,0.00015999,2]
[408658863,1774065041173,-511.55898747,0.00015999,2]
[408658864,1774065041184,-500.0,0.00015999,2]
[408658865,1774065041194,-513.92773084,0.00015999,2]
[408658866,1774065041204,-431.8713349,0.00015999,2]
[408658867,1774065041215,-500.0,0.00015999,2]
[408658868,1774065041225,-500.0,0.00015999,2]
[408658869,1774065041236,-298.37984028,0.00015999,2]
[408658870,1774065041246,-197.72374247,0.00015999,2]
[408658871,1774065041255,-500.0,0.00015999,2]
[408658872,1774065041265,-500.0,0.00015999,2]
[408658873,1774065041275,-500.0,0.00015999,2]
[408658874,1774065041284,-400.22335276,0.00015999,2]
[408658875,1774065041294,-167.64662926,0.00015999,2]
[408658876,1774065041304,-1868.0,0.00016,5]
[408658877,1774065041315,-1783.0,0.00016,5]
[408658878,1774065041325,-4092576.93814193,0.00016,2]
[408658879,1774065041335,-153.29965778,0.00016,2]
[408658880,1774065041345,-1008.5537948,0.00016,2]
[408658881,1774065041355,-200.0,0.00016,2]
[408658882,1774065041365,-1000.0,0.00016,2]
[408658883,1774065041375,-1000.0,0.00016,2]
[408658884,1774065041387,-1000.0,0.00016,2]
[408658885,1774065041396,-1000.0,0.00016,2]
[408658886,1774065041405,-1000.0,0.00016,2]
[408658887,1774065041414,-1000.0,0.00016,2]
[408658888,1774065041423,-1000.0,0.00016,2]
[408658889,1774065041435,-1000.0,0.00016,2]
[408658890,1774065041444,-1000.0,0.00016,2]
[408658891,1774065041455,-1000.0,0.00016,2]
[408658892,1774065041465,-1000.0,0.00016,2]
[408658893,1774065041475,-1000.0,0.00016,2]
[408658894,1774065041484,-1000.0,0.00016,2]
[408658895,1774065041494,-200.0,0.00016,2]
[408658896,1774065041503,-3025.6613844,0.00016,2]
[408658897,1774065041513,-157.56924,0.00016,2]
[408658898,1774065041523,-150.0,0.00016136,14]
[408658899,1774065041533,-1680.0,0.00016139,2]
[408658900,1774065041542,-500.0,0.00016164,2]
[408658901,1774065041552,-500.0,0.00016164,2]
[408658902,1774065041562,-500.0,0.00016164,2]
[408658903,1774065041571,-500.0,0.00016164,2]
[408658904,1774065041581,-500.0,0.00016164,2]
[408658905,1774065041590,-500.0,0.00016164,2]
[408658906,1774065041599,-500.0,0.00016164,2]
[408658907,1774065041610,-389.47246343,0.00016164,2]
[408658908,1774065041619,-319.07941767,0.00016164,2]
[408658909,1774065041629,-150.0,0.00016164,2]
[408658910,1774065041639,-254.25343401,0.00016164,2]
[408658911,1774065041648,-450.35,0.00016167,2]
[408658912,1774065041658,-1794.0,0.00016195,2]
[408658913,1774065041667,-5000.00505013,0.000162,5]
[408658914,1774065041676,-157.56924,0.000162,2]
[408658915,1774065041686,-1794.0,0.00016244,2]
[408658916,1774065041695,-205.24,0.00016247,2]
[408658917,1774065041704,-678.64272895,0.00016296,2]
[408658918,1774065041714,-157.56924,0.000164,2]
[408658919,1774065041723,-637.0,0.00016497,2]
[408658920,1774065041733,-4222.0,0.00016516,2]
[408658921,1774065041742,-500.0,0.00016521,2]
[408658922,1774065041752,-505.24689163,0.00016521,2]
[408658923,1774065041762,-205.24705304,0.00016521,2]
[408658924,1774065041772,-157.56924,0.000166,2]
[408658925,1774065041782,-637.0,0.00016627,2]
[408658926,1774065041791,-4222.0,0.0001665,2]
[408658927,1774065041801,-4222.0,0.00016665,2]
[408658928,1774065041809,-500.0,0.00016667,2]
[408658929,1774065041819,-262.64842692,0.00016667,2]
[408658930,1774065041828,-627.58984867,0.00016667,2]
[408658931,1774065041838,-516.47340423,0.00016667,2]
[408658932,1774065041847,-500.0,0.00016667,2]
[408658933,1774065041857,-500.0,0.00016667,2]
[408658934,1774065041867,-500.0,0.00016667,2]
[408658935,1774065041876,-500.0,0.00016667,2]
[408658936,1774065041885,-260.83847575,0.00016667,2]
[408658937,1774065041895,-268.3661478,0.00016667,2]
[408658938,1774065041904,-500.0,0.00016667,2]
[408658939,1774065041913,-500.0,0.00016667,2]
[408658940,1774065041923,-500.0,0.00016667,2]
[408658941,1774065041932,-500.0,0.00016667,2]
[408658942,1774065041940,-500.0,0.00016667,2]
[408658943,1774065041949,-151.0,0.00016667,2]
[408658944,1774065041957,-500.0,0.00016667,2]
[408658945,1774065041966,-500.0,0.00016667,2]
[408658946,1774065041974,-267.75512564,0.00016667,2]
[408658947,1774065041982,-500.0,0.00016667,2]
[408658948,1774065041991,-612.54706251,0.00016667,2]
[408658949,1774065042000,-271.42195185,0.00016667,2]
[408658950,1774065042010,-500.0,0.00016722,2]
[408658951,1774065042019,-158.77199828,0.00016722,2]
[408658952,1774065042028,-529.03054196,0.00016777,2]
[408658953,1774065042038,-637.0,0.00016865,2]
[408658954,1774065042048,-637.0,0.00016977,2]
[408658955,1774065042057,-2000.0,0.00016981,2]
[408658956,1774065042067,-248.61991808,0.00017173,2]
[408658957,1774065042243,-251.17975102,0.00017517,2]
[408658958,1774065042253,-450.35,0.00017537,2]
[408658959,1774065042263,-180.0,0.00017753,2]
[408658960,1774065042273,-998.0,0.000179,2]
[408658961,1774065042283,-1361.3,0.0001794,2]
[408658962,1774065042292,-351.54,0.00018095,2]
[408658963,1774065042301,-150.25811759,0.00018399,5]
[408658964,1774065042311,-3261.56809751,0.00018567,2]
[408658965,1774065042320,-2000.0,0.00018868,2]